[Event "Titled Tuesday Blitz July 18 Early 2023"]
[White "Winkels, Marcel"]
[Black "Ziatdinov, Raset"]
[WhiteFideId "1003887"]
[BlackFideId "2015323"]
[WhiteElo "2090"]
[BlackElo "2295"]
[Result "0-1"]
[Round "6"]
[TimeControl "180+2"]
[Date "2023.07.18"]
[WhiteClock "0:00:26"]
[BlackClock "0:00:11"]
[Board "192"]

1. e4 {[%clk 0:03:00]}  e6 {[%clk 0:02:56]} 2. d4 {[%clk 0:02:59]}  d5 {[%clk 0:02:57]} 3. e5 {[%clk 0:03:00]}  c5 {[%clk 0:02:57]} 4. c3 {[%clk 0:03:00]}  Nc6 {[%clk 0:02:57]} 5. Nf3 {[%clk 0:03:00]}  Bd7 {[%clk 0:02:58]} 6. Bd3 {[%clk 0:02:59]}  Rc8 {[%clk 0:02:58]} 7. a3 {[%clk 0:02:57]}  cxd4 {[%clk 0:02:55]} 8. cxd4 {[%clk 0:02:57]}  g6 {[%clk 0:02:54]} 9. O-O {[%clk 0:02:55]}  Bg7 {[%clk 0:02:55]} 10. Nc3 {[%clk 0:02:48]}  a6 {[%clk 0:02:55]} 11. Bg5 {[%clk 0:02:43]}  f6 {[%clk 0:02:47]} 12. exf6 {[%clk 0:02:41]}  Nxf6 {[%clk 0:02:47]} 13. Re1 {[%clk 0:02:40]}  O-O {[%clk 0:02:47]} 14. Ne5 {[%clk 0:02:39]}  Qc7 {[%clk 0:02:09]} 15. Nxc6 {[%clk 0:02:20]}  Qxc6 {[%clk 0:02:00]} 16. Rc1 {[%clk 0:02:20]}  Qd6 {[%clk 0:01:59]} 17. Qd2 {[%clk 0:02:11]}  Rce8 {[%clk 0:01:50]} 18. Bf4 {[%clk 0:02:08]}  Qe7 {[%clk 0:01:47]} 19. Be5 {[%clk 0:02:08]}  Qf7 {[%clk 0:01:47]} 20. h3 {[%clk 0:02:01]}  Nh5 {[%clk 0:01:45]} 21. Bxg7 {[%clk 0:01:47]}  Qxg7 {[%clk 0:00:59]} 22. Bf1 {[%clk 0:01:39]}  Re7 {[%clk 0:00:27]} 23. Ne2 {[%clk 0:01:37]}  Ref7 {[%clk 0:00:26]} 24. Rc7 {[%clk 0:01:24]}  Rxf2 {[%clk 0:00:21]} 25. Qe3 {[%clk 0:01:14]}  Qf7 {[%clk 0:00:17]} 26. Qe5 {[%clk 0:01:12]}  Rxf1+ {[%clk 0:00:17]} 27. Rxf1 {[%clk 0:01:10]}  Qxf1+ {[%clk 0:00:18]} 28. Kh2 {[%clk 0:01:10]}  Qf7 {[%clk 0:00:18]} 29. Qd6 {[%clk 0:01:09]}  Nf6 {[%clk 0:00:16]} 30. Rxb7 {[%clk 0:01:06]}  Qg7 {[%clk 0:00:13]} 31. Qe5 {[%clk 0:01:05]}  Rf7 {[%clk 0:00:11]} 32. Rb8+ {[%clk 0:01:03]}  Ne8 {[%clk 0:00:11]} 33. Nf4 {[%clk 0:00:59]}  Qxe5 {[%clk 0:00:10]} 34. dxe5 {[%clk 0:00:59]}  Rxf4 {[%clk 0:00:11]} 35. Rd8 {[%clk 0:00:58]}  Rf7 {[%clk 0:00:11]} 36. Kg3 {[%clk 0:00:57]}  Kf8 {[%clk 0:00:11]} 37. Ra8 {[%clk 0:00:55]}  Ke7 {[%clk 0:00:12]} 38. Rxa6 {[%clk 0:00:54]}  Rf5 {[%clk 0:00:12]} 39. Ra7 {[%clk 0:00:53]}  Rxe5 {[%clk 0:00:12]} 40. b4 {[%clk 0:00:53]}  Re3+ {[%clk 0:00:11]} 41. Kh2 {[%clk 0:00:51]}  Nd6 {[%clk 0:00:11]} 42. a4 {[%clk 0:00:50]}  Ra3 {[%clk 0:00:11]} 43. b5 {[%clk 0:00:49]}  Nxb5 {[%clk 0:00:11]} 44. Ra8 {[%clk 0:00:41]}  Nc7 {[%clk 0:00:10]} 45. Ra7 {[%clk 0:00:41]}  Ne8 {[%clk 0:00:09]} 46. a5 {[%clk 0:00:40]}  Nd6 {[%clk 0:00:10]} 47. h4 {[%clk 0:00:38]}  Nc4 {[%clk 0:00:10]} 48. a6 {[%clk 0:00:37]}  Kd6 {[%clk 0:00:10]} 49. Ra8 {[%clk 0:00:37]}  Nb6 {[%clk 0:00:10]} 50. Rh8 {[%clk 0:00:36]}  Rxa6 {[%clk 0:00:09]} 51. Rxh7 {[%clk 0:00:36]}  d4 {[%clk 0:00:10]} 52. Rg7 {[%clk 0:00:36]}  d3 {[%clk 0:00:10]} 53. Rxg6 {[%clk 0:00:26]}  d2 {[%clk 0:00:11]} 0-1


[Site "https://www.chess.com"]

[Event "Titled Tuesday Blitz July 18 Early 2023"]
[White "abelmat"]
[Black "Clawitter, Craig"]
[BlackFideId "2023105"]
[WhiteElo "1953"]
[BlackElo "2286"]
[Result "1-0"]
[Round "6"]
[TimeControl "180+2"]
[Date "2023.07.18"]
[WhiteClock "0:00:13"]
[BlackClock "0:00:51"]
[Board "193"]

1. e4 {[%clk 0:03:00]}  e6 {[%clk 0:02:55]} 2. d4 {[%clk 0:02:57]}  d5 {[%clk 0:02:56]} 3. exd5 {[%clk 0:02:57]}  exd5 {[%clk 0:02:57]} 4. Nf3 {[%clk 0:02:58]}  Bd6 {[%clk 0:02:57]} 5. Bd3 {[%clk 0:02:58]}  Nc6 {[%clk 0:02:57]} 6. O-O {[%clk 0:02:59]}  Bg4 {[%clk 0:02:58]} 7. c3 {[%clk 0:02:58]}  Nge7 {[%clk 0:02:58]} 8. Bg5 {[%clk 0:02:57]}  f6 {[%clk 0:02:57]} 9. Bh4 {[%clk 0:02:57]}  Qd7 {[%clk 0:02:57]} 10. Nbd2 {[%clk 0:02:55]}  O-O-O {[%clk 0:02:57]} 11. b4 {[%clk 0:02:53]}  Rde8 {[%clk 0:02:57]} 12. a4 {[%clk 0:02:52]}  g5 {[%clk 0:02:56]} 13. Bg3 {[%clk 0:02:52]}  Bxg3 {[%clk 0:02:57]} 14. hxg3 {[%clk 0:02:48]}  h5 {[%clk 0:02:57]} 15. a5 {[%clk 0:02:47]}  h4 {[%clk 0:02:55]} 16. gxh4 {[%clk 0:02:40]}  Bxf3 {[%clk 0:02:49]} 17. Qxf3 {[%clk 0:02:16]}  Rxh4 {[%clk 0:02:49]} 18. b5 {[%clk 0:02:10]}  Reh8 {[%clk 0:02:44]} 19. g3 {[%clk 0:02:08]}  Qh3 {[%clk 0:02:08]} 20. gxh4 {[%clk 0:02:00]}  Qxh4 {[%clk 0:01:59]} 21. Qg2 {[%clk 0:01:47]}  Nd8 {[%clk 0:01:56]} 22. Nf3 {[%clk 0:01:32]}  Qh5 {[%clk 0:01:43]} 23. Rfe1 {[%clk 0:01:24]}  Ng6 {[%clk 0:01:30]} 24. Bxg6 {[%clk 0:01:16]}  Qxg6 {[%clk 0:01:31]} 25. b6 {[%clk 0:01:09]}  a6 {[%clk 0:01:29]} 26. bxc7 {[%clk 0:01:05]}  Nf7 {[%clk 0:01:27]} 27. Re7 {[%clk 0:00:53]}  g4 {[%clk 0:01:25]} 28. Nh2 {[%clk 0:00:40]}  f5 {[%clk 0:01:14]} 29. Qxd5 {[%clk 0:00:38]}  Nd6 {[%clk 0:01:06]} 30. Qe6+ {[%clk 0:00:25]}  Qxe6 {[%clk 0:01:05]} 31. Rxe6 {[%clk 0:00:26]}  Ne4 {[%clk 0:01:05]} 32. Re7 {[%clk 0:00:23]}  Nxf2 {[%clk 0:01:00]} 33. Rae1 {[%clk 0:00:20]}  g3 {[%clk 0:00:56]} 34. Re8+ {[%clk 0:00:19]}  Rxe8 {[%clk 0:00:56]} 35. Rxe8+ {[%clk 0:00:19]}  Kxc7 {[%clk 0:00:57]} 36. Nf3 {[%clk 0:00:18]}  Ne4 {[%clk 0:00:55]} 37. Rf8 {[%clk 0:00:18]}  Nxc3 {[%clk 0:00:51]} 38. Rxf5 {[%clk 0:00:16]}  Nb5 {[%clk 0:00:50]} 39. d5 {[%clk 0:00:16]}  b6 {[%clk 0:00:44]} 40. axb6+ {[%clk 0:00:15]}  Kxb6 {[%clk 0:00:45]} 41. Rf6+ {[%clk 0:00:14]}  Kb7 {[%clk 0:00:44]} 42. d6 {[%clk 0:00:14]}  a5 {[%clk 0:00:45]} 43. d7 {[%clk 0:00:12]}  Kc7 {[%clk 0:00:44]} 44. Ne5 {[%clk 0:00:12]}  a4 {[%clk 0:00:43]} 45. Ra6 {[%clk 0:00:12]}  a3 {[%clk 0:00:43]} 46. Ra5 {[%clk 0:00:12]}  Nd6 {[%clk 0:00:42]} 47. Rxa3 {[%clk 0:00:11]}  Nb7 {[%clk 0:00:43]} 48. Rxg3 {[%clk 0:00:10]}  Kd6 {[%clk 0:00:42]} 49. Rd3+ {[%clk 0:00:10]}  Kxe5 {[%clk 0:00:42]} 50. d8=Q {[%clk 0:00:09]}  Nxd8 {[%clk 0:00:43]} 51. Rxd8 {[%clk 0:00:10]}  Ke6 {[%clk 0:00:43]} 52. Rd4 {[%clk 0:00:09]}  Ke5 {[%clk 0:00:43]} 53. Ra4 {[%clk 0:00:10]}  Kd5 {[%clk 0:00:44]} 54. Kf2 {[%clk 0:00:11]}  Kc5 {[%clk 0:00:44]} 55. Ke3 {[%clk 0:00:12]}  Kb5 {[%clk 0:00:45]} 56. Rh4 {[%clk 0:00:12]}  Kc5 {[%clk 0:00:45]} 57. Kd3 {[%clk 0:00:12]}  Kb5 {[%clk 0:00:46]} 58. Kc3 {[%clk 0:00:12]}  Kc6 {[%clk 0:00:45]} 59. Rh5 {[%clk 0:00:12]}  Kd6 {[%clk 0:00:45]} 60. Kd4 {[%clk 0:00:13]}  Ke6 {[%clk 0:00:46]} 61. Ra5 {[%clk 0:00:13]}  Kf6 {[%clk 0:00:46]} 62. Ke4 {[%clk 0:00:13]}  Kg6 {[%clk 0:00:46]} 63. Kf4 {[%clk 0:00:13]}  Kh6 {[%clk 0:00:47]} 64. Kg4 {[%clk 0:00:14]}  Kg6 {[%clk 0:00:47]} 65. Ra6+ {[%clk 0:00:14]}  Kf7 {[%clk 0:00:48]} 66. Kf5 {[%clk 0:00:15]}  Ke8 {[%clk 0:00:48]} 67. Ke6 {[%clk 0:00:15]}  Kd8 {[%clk 0:00:48]} 68. Ra7 {[%clk 0:00:14]}  Kc8 {[%clk 0:00:48]} 69. Rh7 {[%clk 0:00:14]}  Kb8 {[%clk 0:00:49]} 70. Kd6 {[%clk 0:00:14]}  Ka8 {[%clk 0:00:50]} 71. Kc6 {[%clk 0:00:14]}  Kb8 {[%clk 0:00:51]} 72. Rg7 {[%clk 0:00:13]}  Ka8 {[%clk 0:00:51]} 73. Kb6 {[%clk 0:00:13]}  Kb8 {[%clk 0:00:51]} 74. Rg8# {[%clk 0:00:13]} 1-0


[Site "https://www.chess.com"]

[Event "Titled Tuesday Blitz July 18 Early 2023"]
[White "Lohani, Sujana"]
[Black "Quirke, Jeffrey"]
[WhiteFideId "12311987"]
[BlackFideId "2013029"]
[WhiteElo "1928"]
[BlackElo "2236"]
[Result "1-0"]
[Round "6"]
[TimeControl "180+2"]
[Date "2023.07.18"]
[WhiteClock "0:01:22"]
[BlackClock "0:00:10"]
[Board "194"]

1. d4 {[%clk 0:03:00]}  e6 {[%clk 0:02:58]} 2. Nf3 {[%clk 0:03:00]}  f5 {[%clk 0:02:58]} 3. c4 {[%clk 0:02:58]}  Nf6 {[%clk 0:02:58]} 4. Nc3 {[%clk 0:02:58]}  Bb4 {[%clk 0:02:57]} 5. Bd2 {[%clk 0:02:58]}  O-O {[%clk 0:02:52]} 6. Qc2 {[%clk 0:02:57]}  Bxc3 {[%clk 0:02:49]} 7. Bxc3 {[%clk 0:02:57]}  Ne4 {[%clk 0:02:47]} 8. Bb4 {[%clk 0:02:56]}  d6 {[%clk 0:02:46]} 9. e3 {[%clk 0:02:55]}  b6 {[%clk 0:02:45]} 10. Bd3 {[%clk 0:02:47]}  Bb7 {[%clk 0:02:44]} 11. Rd1 {[%clk 0:02:45]}  Nd7 {[%clk 0:02:42]} 12. O-O {[%clk 0:02:41]}  Rf6 {[%clk 0:02:40]} 13. Nd2 {[%clk 0:02:40]}  Nxd2 {[%clk 0:02:28]} 14. Rxd2 {[%clk 0:02:37]}  Rg6 {[%clk 0:02:28]} 15. d5 {[%clk 0:02:24]}  exd5 {[%clk 0:02:12]} 16. Bxf5 {[%clk 0:02:18]}  Rxg2+ {[%clk 0:01:06]} 17. Kxg2 {[%clk 0:02:11]}  Qg5+ {[%clk 0:01:06]} 18. Kh1 {[%clk 0:02:02]}  Ne5 {[%clk 0:00:33]} 19. f4 {[%clk 0:01:41]}  d4+ {[%clk 0:00:32]} 20. Be4 {[%clk 0:01:38]}  d3 {[%clk 0:00:21]} 21. Bxb7 {[%clk 0:01:23]}  dxc2 {[%clk 0:00:10]} 22. fxg5 {[%clk 0:01:22]} 1-0


[Site "https://www.chess.com"]

[Event "Titled Tuesday Blitz July 18 Early 2023"]
[White "Nan M K Khine Hlyan"]
[Black "Hrescak, Ivana"]
[WhiteFideId "13002899"]
[BlackFideId "14613441"]
[WhiteElo "1750"]
[BlackElo "2121"]
[Result "0-1"]
[Round "6"]
[TimeControl "180+2"]
[Date "2023.07.18"]
[WhiteClock "0:00:50"]
[BlackClock "0:00:28"]
[Board "198"]

1. e4 {[%clk 0:03:00]}  e5 {[%clk 0:02:59]} 2. Nf3 {[%clk 0:02:50]}  Nc6 {[%clk 0:02:59]} 3. Bb5 {[%clk 0:02:49]}  a6 {[%clk 0:02:59]} 4. Ba4 {[%clk 0:02:48]}  b5 {[%clk 0:02:59]} 5. Bb3 {[%clk 0:02:48]}  g6 {[%clk 0:03:00]} 6. d4 {[%clk 0:02:46]}  exd4 {[%clk 0:02:59]} 7. Nxd4 {[%clk 0:02:46]}  Na5 {[%clk 0:02:59]} 8. O-O {[%clk 0:02:33]}  Bg7 {[%clk 0:02:59]} 9. Bxf7+ {[%clk 0:02:22]}  Kxf7 {[%clk 0:02:57]} 10. Qf3+ {[%clk 0:02:22]}  Qf6 {[%clk 0:02:53]} 11. Bf4 {[%clk 0:02:19]}  g5 {[%clk 0:02:30]} 12. e5 {[%clk 0:02:17]}  Qxf4 {[%clk 0:02:28]} 13. Qd5+ {[%clk 0:02:05]}  Kg6 {[%clk 0:01:52]} 14. Qxa8 {[%clk 0:02:02]}  Ne7 {[%clk 0:01:25]} 15. c3 {[%clk 0:01:51]}  Bb7 {[%clk 0:01:15]} 16. Qa7 {[%clk 0:01:48]}  Bxe5 {[%clk 0:01:08]} 17. g3 {[%clk 0:01:45]}  Bxd4 {[%clk 0:00:45]} 18. Qxd4 {[%clk 0:01:43]}  Qf3 {[%clk 0:00:45]} 19. Qd3+ {[%clk 0:01:24]}  Qxd3 {[%clk 0:00:45]} 20. f3 {[%clk 0:01:10]}  Nf5 {[%clk 0:00:37]} 21. Na3 {[%clk 0:01:06]}  Re8 {[%clk 0:00:26]} 22. Rad1 {[%clk 0:00:59]}  Qe3+ {[%clk 0:00:27]} 23. Kh1 {[%clk 0:00:57]}  d6 {[%clk 0:00:27]} 24. Rfe1 {[%clk 0:00:55]}  Qxe1+ {[%clk 0:00:26]} 25. Rxe1 {[%clk 0:00:54]}  Rxe1+ {[%clk 0:00:27]} 26. Kg2 {[%clk 0:00:55]}  Re2+ {[%clk 0:00:28]} 27. Kh3 {[%clk 0:00:53]}  Bxf3 {[%clk 0:00:28]} 28. c4 {[%clk 0:00:50]}  g4# {[%clk 0:00:28]} 0-1


[Site "https://www.chess.com"]

[Event "Titled Tuesday Blitz July 18 Early 2023"]
[White "He, Anthony"]
[Black "Martinez Alcantara, Jose Eduardo"]
[WhiteFideId "2088215"]
[BlackFideId "3805662"]
[WhiteElo "2961"]
[BlackElo "3036"]
[Result "1-0"]
[Round "7"]
[TimeControl "180+2"]
[Date "2023.07.18"]
[WhiteClock "0:00:23"]
[BlackClock "0:00:04"]
[Board "3"]

1. e4 {[%clk 0:03:00]}  c5 {[%clk 0:02:59]} 2. Ne2 {[%clk 0:03:00]}  d6 {[%clk 0:02:59]} 3. g3 {[%clk 0:03:00]}  Nf6 {[%clk 0:02:58]} 4. Bg2 {[%clk 0:03:00]}  g6 {[%clk 0:02:59]} 5. c3 {[%clk 0:03:01]}  Bg7 {[%clk 0:02:59]} 6. d4 {[%clk 0:03:01]}  O-O {[%clk 0:02:59]} 7. O-O {[%clk 0:03:01]}  Nc6 {[%clk 0:02:57]} 8. h3 {[%clk 0:03:01]}  e5 {[%clk 0:02:49]} 9. Be3 {[%clk 0:03:00]}  b6 {[%clk 0:02:40]} 10. Nd2 {[%clk 0:02:54]}  Re8 {[%clk 0:02:33]} 11. Re1 {[%clk 0:02:51]}  Ba6 {[%clk 0:02:28]} 12. d5 {[%clk 0:02:49]}  Ne7 {[%clk 0:02:26]} 13. Qa4 {[%clk 0:02:46]}  Qc8 {[%clk 0:02:23]} 14. b4 {[%clk 0:02:45]}  Nd7 {[%clk 0:02:15]} 15. a3 {[%clk 0:02:43]}  f5 {[%clk 0:02:12]} 16. c4 {[%clk 0:02:39]}  Nf6 {[%clk 0:02:04]} 17. bxc5 {[%clk 0:02:37]}  bxc5 {[%clk 0:02:03]} 18. Rab1 {[%clk 0:02:37]}  Nd7 {[%clk 0:01:54]} 19. Qc2 {[%clk 0:02:27]}  Qc7 {[%clk 0:01:50]} 20. Rb3 {[%clk 0:02:19]}  Nb6 {[%clk 0:01:47]} 21. Reb1 {[%clk 0:02:18]}  Rf8 {[%clk 0:01:48]} 22. h4 {[%clk 0:01:57]}  fxe4 {[%clk 0:01:48]} 23. Bxe4 {[%clk 0:01:56]}  Nf5 {[%clk 0:01:48]} 24. h5 {[%clk 0:01:47]}  Qd7 {[%clk 0:01:48]} 25. hxg6 {[%clk 0:01:47]}  hxg6 {[%clk 0:01:49]} 26. Kg2 {[%clk 0:01:41]}  Rf7 {[%clk 0:01:37]} 27. f3 {[%clk 0:01:34]}  Raf8 {[%clk 0:01:37]} 28. Bf2 {[%clk 0:01:35]}  Bf6 {[%clk 0:01:25]} 29. g4 {[%clk 0:01:28]}  Rg7 {[%clk 0:01:25]} 30. Rh1 {[%clk 0:01:23]}  Bg5 {[%clk 0:01:23]} 31. Kf1 {[%clk 0:01:07]}  Qf7 {[%clk 0:01:14]} 32. f4 {[%clk 0:01:01]}  Nd4 {[%clk 0:00:53]} 33. Rbh3 {[%clk 0:00:54]}  Rh7 {[%clk 0:00:38]} 34. Rxh7 {[%clk 0:00:44]}  Qxh7 {[%clk 0:00:39]} 35. Nxd4 {[%clk 0:00:44]}  Qe7 {[%clk 0:00:32]} 36. Ne6 {[%clk 0:00:40]}  Bxf4 {[%clk 0:00:33]} 37. Bxg6 {[%clk 0:00:36]}  Rf6 {[%clk 0:00:31]} 38. Be4 {[%clk 0:00:32]}  Be3 {[%clk 0:00:19]} 39. Bh7+ {[%clk 0:00:24]}  Kf7 {[%clk 0:00:19]} 40. Bf5 {[%clk 0:00:25]}  Nxd5 {[%clk 0:00:12]} 41. Rh7+ {[%clk 0:00:25]}  Ke8 {[%clk 0:00:12]} 42. Rxe7+ {[%clk 0:00:24]}  Kxe7 {[%clk 0:00:13]} 43. Qa4 {[%clk 0:00:22]}  Bxd2 {[%clk 0:00:11]} 44. Qxa6 {[%clk 0:00:22]}  Ne3+ {[%clk 0:00:10]} 45. Bxe3 {[%clk 0:00:22]}  Rxf5+ {[%clk 0:00:11]} 46. gxf5 {[%clk 0:00:22]}  Bxe3 {[%clk 0:00:11]} 47. Qxa7+ {[%clk 0:00:22]}  Kf6 {[%clk 0:00:12]} 48. Qd7 {[%clk 0:00:22]}  Kxf5 {[%clk 0:00:12]} 49. Nxc5+ {[%clk 0:00:22]}  Kf4 {[%clk 0:00:13]} 50. Qxd6 {[%clk 0:00:22]}  Bd4 {[%clk 0:00:13]} 51. Ne6+ {[%clk 0:00:22]}  Ke3 {[%clk 0:00:14]} 52. Nxd4 {[%clk 0:00:22]}  exd4 {[%clk 0:00:15]} 53. c5 {[%clk 0:00:23]}  d3 {[%clk 0:00:15]} 54. Ke1 {[%clk 0:00:23]}  Ke4 {[%clk 0:00:15]} 55. c6 {[%clk 0:00:23]}  Kf5 {[%clk 0:00:16]} 56. c7 {[%clk 0:00:24]}  d2+ {[%clk 0:00:17]} 57. Kxd2 {[%clk 0:00:24]}  Ke4 {[%clk 0:00:18]} 58. Qd3+ {[%clk 0:00:23]}  Ke5 {[%clk 0:00:18]} 59. Qe3+ {[%clk 0:00:22]}  Kd5 {[%clk 0:00:18]} 60. c8=Q {[%clk 0:00:22]}  Kd6 {[%clk 0:00:19]} 61. Qcc5+ {[%clk 0:00:22]}  Kd7 {[%clk 0:00:04]} 62. Qee7# {[%clk 0:00:23]} 1-0


[Site "https://www.chess.com"]

[Event "Titled Tuesday Blitz July 18 Early 2023"]
[White "Svane, Rasmus"]
[Black "Firouzja, Alireza"]
[WhiteFideId "4657101"]
[BlackFideId "12573981"]
[WhiteElo "2981"]
[BlackElo "3101"]
[Result "0-1"]
[Round "7"]
[TimeControl "180+2"]
[Date "2023.07.18"]
[WhiteClock "0:00:10"]
[BlackClock "0:01:41"]
[Board "4"]

1. Nf3 {[%clk 0:03:00]}  Nf6 {[%clk 0:03:00]} 2. g3 {[%clk 0:03:01]}  g6 {[%clk 0:03:00]} 3. Bg2 {[%clk 0:03:01]}  Bg7 {[%clk 0:03:01]} 4. O-O {[%clk 0:03:02]}  O-O {[%clk 0:03:01]} 5. d4 {[%clk 0:03:02]}  d6 {[%clk 0:03:02]} 6. Re1 {[%clk 0:03:03]}  Nbd7 {[%clk 0:03:03]} 7. e4 {[%clk 0:03:03]}  e5 {[%clk 0:03:04]} 8. Nc3 {[%clk 0:03:04]}  c6 {[%clk 0:03:04]} 9. a4 {[%clk 0:03:04]}  Re8 {[%clk 0:03:05]} 10. h3 {[%clk 0:03:04]}  Qc7 {[%clk 0:03:05]} 11. Be3 {[%clk 0:03:04]}  b6 {[%clk 0:03:05]} 12. Qd2 {[%clk 0:02:55]}  Bb7 {[%clk 0:03:05]} 13. Rad1 {[%clk 0:02:55]}  a6 {[%clk 0:03:06]} 14. g4 {[%clk 0:02:41]}  b5 {[%clk 0:03:01]} 15. dxe5 {[%clk 0:02:16]}  Nxe5 {[%clk 0:03:01]} 16. Nxe5 {[%clk 0:02:13]}  dxe5 {[%clk 0:03:01]} 17. Qd6 {[%clk 0:02:10]}  Qxd6 {[%clk 0:02:46]} 18. Rxd6 {[%clk 0:02:11]}  h5 {[%clk 0:02:46]} 19. g5 {[%clk 0:02:10]}  Nh7 {[%clk 0:02:45]} 20. h4 {[%clk 0:02:02]}  Nf8 {[%clk 0:02:31]} 21. Bh3 {[%clk 0:02:00]}  Bc8 {[%clk 0:02:31]} 22. Bxc8 {[%clk 0:01:53]}  Rexc8 {[%clk 0:02:32]} 23. axb5 {[%clk 0:01:46]}  axb5 {[%clk 0:02:32]} 24. b3 {[%clk 0:01:36]}  Ne6 {[%clk 0:02:32]} 25. Red1 {[%clk 0:01:35]}  Bf8 {[%clk 0:02:31]} 26. Rd7 {[%clk 0:01:34]}  Bb4 {[%clk 0:02:30]} 27. R1d3 {[%clk 0:01:11]}  Kg7 {[%clk 0:02:02]} 28. Kg2 {[%clk 0:00:57]}  Bc5 {[%clk 0:01:53]} 29. Rb7 {[%clk 0:00:30]}  Bxe3 {[%clk 0:01:50]} 30. Rxe3 {[%clk 0:00:31]}  Rd8 {[%clk 0:01:45]} 31. Rb6 {[%clk 0:00:21]}  Rd2 {[%clk 0:01:45]} 32. Rxc6 {[%clk 0:00:16]}  Rxc2 {[%clk 0:01:45]} 33. Rxe6 {[%clk 0:00:16]}  fxe6 {[%clk 0:01:44]} 34. Nxb5 {[%clk 0:00:17]}  Rf8 {[%clk 0:01:44]} 35. Rf3 {[%clk 0:00:12]}  Rxf3 {[%clk 0:01:45]} 36. Kxf3 {[%clk 0:00:13]}  Rb2 {[%clk 0:01:45]} 37. Nd6 {[%clk 0:00:13]}  Rxb3+ {[%clk 0:01:45]} 38. Kg2 {[%clk 0:00:13]}  Rb4 {[%clk 0:01:41]} 39. Kf3 {[%clk 0:00:13]}  Kf8 {[%clk 0:01:41]} 40. Ke3 {[%clk 0:00:10]}  Ke7 {[%clk 0:01:42]} 41. Nc8+ {[%clk 0:00:10]}  Kd7 {[%clk 0:01:41]} 42. Na7 {[%clk 0:00:10]} 0-1


[Site "https://www.chess.com"]

[Event "Titled Tuesday Blitz July 18 Early 2023"]
[White "Galperin, Platon"]
[Black "Skvortsov, Andrei"]
[WhiteFideId "14165414"]
[BlackFideId "24108600"]
[WhiteElo "2980"]
[BlackElo "2764"]
[Result "1-0"]
[Round "7"]
[TimeControl "180+2"]
[Date "2023.07.18"]
[WhiteClock "0:01:53"]
[BlackClock "0:00:03"]
[Board "10"]

1. e4 {[%clk 0:03:00]}  c5 {[%clk 0:03:00]} 2. Nf3 {[%clk 0:03:01]}  d6 {[%clk 0:03:00]} 3. Nc3 {[%clk 0:03:01]}  Nf6 {[%clk 0:03:00]} 4. e5 {[%clk 0:03:01]}  dxe5 {[%clk 0:02:59]} 5. Nxe5 {[%clk 0:03:01]}  a6 {[%clk 0:02:58]} 6. g3 {[%clk 0:03:02]}  Nbd7 {[%clk 0:02:58]} 7. d4 {[%clk 0:03:00]}  Nxe5 {[%clk 0:02:58]} 8. dxe5 {[%clk 0:03:01]}  Qxd1+ {[%clk 0:02:58]} 9. Nxd1 {[%clk 0:03:02]}  Nd5 {[%clk 0:02:57]} 10. Bg2 {[%clk 0:03:03]}  e6 {[%clk 0:02:56]} 11. Ne3 {[%clk 0:03:03]}  Nxe3 {[%clk 0:02:46]} 12. Bxe3 {[%clk 0:03:04]}  Kd7 {[%clk 0:02:46]} 13. O-O-O+ {[%clk 0:02:54]}  Kc7 {[%clk 0:02:47]} 14. Rd2 {[%clk 0:02:55]}  Be7 {[%clk 0:02:39]} 15. Rhd1 {[%clk 0:02:54]}  Rb8 {[%clk 0:02:28]} 16. h4 {[%clk 0:02:53]}  h6 {[%clk 0:02:22]} 17. a4 {[%clk 0:02:33]}  b6 {[%clk 0:02:18]} 18. a5 {[%clk 0:02:34]}  bxa5 {[%clk 0:02:15]} 19. Rd3 {[%clk 0:02:34]}  Rb4 {[%clk 0:02:05]} 20. Bd2 {[%clk 0:02:29]}  Ra4 {[%clk 0:02:00]} 21. b3 {[%clk 0:02:29]}  Ra1+ {[%clk 0:01:58]} 22. Kb2 {[%clk 0:02:29]}  Rxd1 {[%clk 0:01:58]} 23. Bxa5+ {[%clk 0:02:30]}  Kb8 {[%clk 0:01:57]} 24. Rxd1 {[%clk 0:02:31]}  f6 {[%clk 0:01:47]} 25. Bc3 {[%clk 0:02:27]}  Rd8 {[%clk 0:01:48]} 26. exf6 {[%clk 0:02:17]}  Rxd1 {[%clk 0:00:54]} 27. fxe7 {[%clk 0:02:17]}  Bd7 {[%clk 0:00:53]} 28. h5 {[%clk 0:02:18]}  Be8 {[%clk 0:00:47]} 29. Bxg7 {[%clk 0:02:12]}  Rd2 {[%clk 0:00:39]} 30. g4 {[%clk 0:02:04]}  Rxf2 {[%clk 0:00:38]} 31. Be4 {[%clk 0:02:04]}  Kc8 {[%clk 0:00:36]} 32. Bxh6 {[%clk 0:02:02]}  Re2 {[%clk 0:00:30]} 33. Bd3 {[%clk 0:01:58]}  Rg2 {[%clk 0:00:29]} 34. Bxa6+ {[%clk 0:01:58]}  Kd7 {[%clk 0:00:29]} 35. Bf8 {[%clk 0:01:56]}  Kd6 {[%clk 0:00:03]} 36. Bb5 {[%clk 0:01:53]} 1-0


[Site "https://www.chess.com"]

[Event "Titled Tuesday Blitz July 18 Early 2023"]
[White "Pranav, V"]
[Black "Atakhan, Abtin"]
[WhiteFideId "25060783"]
[BlackFideId "22502203"]
[WhiteElo "2961"]
[BlackElo "2747"]
[Result "1-0"]
[Round "7"]
[TimeControl "180+2"]
[Date "2023.07.18"]
[WhiteClock "0:00:02"]
[BlackClock "0:00:02"]
[Board "11"]

1. e4 {[%clk 0:03:00]}  c5 {[%clk 0:02:59]} 2. Nf3 {[%clk 0:03:01]}  d6 {[%clk 0:03:00]} 3. c3 {[%clk 0:03:00]}  Nf6 {[%clk 0:03:00]} 4. Be2 {[%clk 0:03:00]}  g6 {[%clk 0:02:59]} 5. O-O {[%clk 0:03:00]}  Bg7 {[%clk 0:02:59]} 6. Re1 {[%clk 0:03:01]}  O-O {[%clk 0:02:59]} 7. Bf1 {[%clk 0:03:01]}  Bg4 {[%clk 0:02:53]} 8. d3 {[%clk 0:03:01]}  Nc6 {[%clk 0:02:52]} 9. Nbd2 {[%clk 0:03:01]}  e5 {[%clk 0:02:46]} 10. h3 {[%clk 0:03:01]}  Be6 {[%clk 0:02:45]} 11. a3 {[%clk 0:03:00]}  h6 {[%clk 0:02:38]} 12. b4 {[%clk 0:02:59]}  b6 {[%clk 0:02:34]} 13. Bb2 {[%clk 0:02:56]}  Qc7 {[%clk 0:02:24]} 14. d4 {[%clk 0:02:37]}  exd4 {[%clk 0:01:59]} 15. cxd4 {[%clk 0:02:38]}  Nh5 {[%clk 0:01:52]} 16. Rc1 {[%clk 0:02:34]}  Qe7 {[%clk 0:01:47]} 17. e5 {[%clk 0:02:27]}  Nxd4 {[%clk 0:01:41]} 18. Nxd4 {[%clk 0:02:17]}  cxd4 {[%clk 0:01:42]} 19. Bxd4 {[%clk 0:02:12]}  Rfd8 {[%clk 0:01:42]} 20. Qf3 {[%clk 0:01:55]}  dxe5 {[%clk 0:01:03]} 21. Bxe5 {[%clk 0:01:49]}  Bxe5 {[%clk 0:00:59]} 22. Rxe5 {[%clk 0:01:50]}  Qd6 {[%clk 0:00:50]} 23. Re2 {[%clk 0:01:10]}  Nf4 {[%clk 0:00:50]} 24. Re4 {[%clk 0:01:05]}  Nxh3+ {[%clk 0:00:42]} 25. gxh3 {[%clk 0:01:01]}  Qxd2 {[%clk 0:00:43]} 26. Rc7 {[%clk 0:00:59]}  Qd6 {[%clk 0:00:36]} 27. Qc3 {[%clk 0:00:47]}  Rdc8 {[%clk 0:00:27]} 28. Rxc8+ {[%clk 0:00:46]}  Rxc8 {[%clk 0:00:28]} 29. Qe3 {[%clk 0:00:47]}  Kh7 {[%clk 0:00:20]} 30. Rh4 {[%clk 0:00:42]}  h5 {[%clk 0:00:16]} 31. Bd3 {[%clk 0:00:37]}  Qd5 {[%clk 0:00:16]} 32. Be4 {[%clk 0:00:34]}  Qb5 {[%clk 0:00:13]} 33. a4 {[%clk 0:00:32]}  Qxa4 {[%clk 0:00:05]} 34. Rxh5+ {[%clk 0:00:31]}  Kg8 {[%clk 0:00:06]} 35. Rh6 {[%clk 0:00:06]}  Qd1+ {[%clk 0:00:06]} 36. Kg2 {[%clk 0:00:05]}  Bd5 {[%clk 0:00:06]} 37. Rh4 {[%clk 0:00:03]}  Re8 {[%clk 0:00:05]} 38. Kh2 {[%clk 0:00:02]}  Qf1 {[%clk 0:00:04]} 39. Qd4 {[%clk 0:00:01]}  f6 {[%clk 0:00:02]} 40. Bxd5+ {[%clk 0:00:01]}  Kg7 {[%clk 0:00:02]} 41. Rf4 {[%clk 0:00:02]}  Re1 {[%clk 0:00:01]} 42. Qxf6+ {[%clk 0:00:01]}  Kh7 {[%clk 0:00:02]} 43. Rh4# {[%clk 0:00:02]} 1-0


[Site "https://www.chess.com"]